[Event "PanAm Intercolleagiate-ch 2019"]
[Site "Charlotte"]
[Date "2019.12.28"]
[Round "2.4"]
[White "Beatrez, Patrick"]
[Black "Hakobyan, Aram"]
[Result "1-0"]
[ECO "A43"]
[WhiteElo "1801"]
[BlackElo "2576"]
[Annotator "ChessBase"]
[PlyCount "90"]
[EventDate "2019.12.27"]
[EventType "team-tourn"]
[EventCountry "USA"]
[SourceTitle "playchess.com"]
[Source "ChessBase"]
[SourceQuality "1"]
[TimeControl "5400+30"]

1. d4 {[%emt 1:30:30]} Nf6 {[%emt 1:30:30]} 2. Nf3 {[%emt 0:00:30]} c5 {[%emt 0:00:30]} 3. d5 {[%emt 0:00:30]} e6 {[%emt 0:00:30]} 4. Nc3 {[%emt 0:00:30]} exd5 {[%emt 0:00:30]} 5. Nxd5 {[%emt 0:00:30]} Nxd5 {[%emt 0:00:30]} 6. Qxd5 {[%emt 0:00:30]} d6 {[%emt 0:00:30]} 7. e4 {[%emt 0:00:30]} Nc6 {[%emt 0:00:30]} 8. Ng5 {[%emt 0:00:30]} Qc7 {[%emt 0:00:30]} 9. Bc4 {[%emt 0:00:30]} Ne5 {[%emt 0:00:30]} 10. Bb5+ {[%emt 0:00:30]} Bd7 {[%emt 0:00:30]} 11. Bxd7+ {[%emt 0:00:30]} Qxd7 {[%emt 0:00:30]} 12. Bf4 {[%emt 0:00:30]} Ng6 {[%emt 0:00:30]} 13. Bg3 {[%emt 0:00:30]} h6 {[%emt 0:00:30]} 14. Nf3 {[%emt 0:00:30]} O-O-O {[%emt 0:00:30]} 15. O-O {[%emt 0:00:30]} Qe6 {[%emt 0:00:30]} 16. Qd3 {[%emt 0:00:30]} d5 {[%emt 0:00:30]} 17. Rad1 {[%emt 0:00:30]} d4 {[%emt 0:00:30]} 18. Qa3 {[%emt 0:00:30]} Qb6 {[%emt 0:00:30]} 19. Nd2 {[%emt 0:00:30]} h5 {[%emt 0:00:30]} 20. h3 {[%emt 0:00:30]} h4 {[%emt 0:00:30]} 21. Bh2 {[%emt 0:00:30]} Bd6 {[%emt 0:00:30]} 22. Bxd6 {[%emt 0:00:30]} Qxd6 {[%emt 0:00:30]} 23. Nc4 {[%emt 0:00:30]} Qc6 {[%emt 0:00:30]} 24. Qxa7 {[%emt 0:00:30]} Nf4 {[%emt 0:00:30]} 25. Rfe1 {[%emt 0:00:30]} Rh5 {[%emt 0:00:30]} 26. Na5 {[%emt 0:00:30]} Qc7 {[%emt 0:00:30]} 27. Nc4 {[%emt 0:00:30]} Qc6 {[%emt 0:00:30]} 28. Nb6+ {[%emt 0:00:30]} Kc7 {[%emt 0:00:30]} 29. Nd5+ {[%emt 0:00:30]} Rdxd5 {[%emt 0:00:30]} 30. Qa5+ {[%emt 0:00:30]} Kd7 {[%emt 0:00:30]} 31. exd5 {[%emt 0:00:30]} Qxd5 {[%emt 0:00:30]} 32. Qb5+ {[%emt 0:00:30]} Kd6 {[%emt 0:00:30]} 33. f3 {[%emt 0:00:30]} Rg5 {[%emt 0:00:30]} 34. Rd2 {[%emt 0:00:30]} Qxf3 {[%emt 0:00:30]} 35. Rxd4+ {[%emt 0:00:30]} cxd4 {[%emt 0:00:30]} 36. Qxg5 {[%emt 0:00:30]} Ne2+ {[%emt 0:00:30]} 37. Kh2 {[%emt 0:00:30]} Qg3+ {[%emt 0:00:30]} 38. Qxg3+ {[%emt 0:00:30]} Nxg3 {[%emt 0:00:30]} 39. Re8 {[%emt 0:00:30]} f6 {[%emt 0:00:30]} 40. Rd8+ {[%emt 0:00:30]} Kc5 {[%emt 0:00:30]} 41. Rd7 {[%emt 0:00:30]} b5 {[%emt 0:00:30]} 42. Rxg7 {[%emt 0:00:30]} Nf5 {[%emt 0:00:30]} 43. Rf7 {[%emt 0:00:30]} Ne3 {[%emt 0:00:30]} 44. Kg1 {[%emt 0:00:30]} Nxc2 {[%emt 0:00:30]} 45. Rc7+ {[%emt 0:00:30]} Kd5 {[%emt 0:00:30]} 1-0

[Event "PanAm Intercolleagiate-ch 2019"]
[Site "Charlotte"]
[Date "2019.12.28"]
[Round "2.7"]
[White "Theodorou, Nikolas"]
[Black "Draganoff, Daniel"]
[Result "1-0"]
[ECO "D15"]
[WhiteElo "2555"]
[BlackElo "2135"]
[Annotator "ChessBase"]
[PlyCount "99"]
[EventDate "2019.12.27"]
[EventType "team-tourn"]
[EventCountry "USA"]
[SourceTitle "playchess.com"]
[Source "ChessBase"]
[SourceQuality "1"]
[TimeControl "5400+30"]

1. d4 {[%emt 1:30:30]} d5 {[%emt 1:30:30]} 2. c4 {[%emt 0:00:30]} c6 {[%emt 0:00:30]} 3. Nf3 {[%emt 0:00:30]} Nf6 {[%emt 0:00:30]} 4. Nc3 {[%emt 0:00:30]} dxc4 {[%emt 0:00:30]} 5. e4 {[%emt 0:00:30]} b5 {[%emt 0:00:30]} 6. Be2 {[%emt 0:00:30]} e6 {[%emt 0:00:30]} 7. O-O {[%emt 0:00:30]} Be7 {[%emt 0:00:30]} 8. b3 {[%emt 0:00:30]} cxb3 {[%emt 0:00:30]} 9. Qxb3 {[%emt 0:00:30]} Nbd7 {[%emt 0:00:30]} 10. e5 {[%emt 0:00:30]} Nd5 {[%emt 0:00:30]} 11. Nxd5 {[%emt 0:00:30]} exd5 {[%emt 0:00:30]} 12. Qc2 {[%emt 0:00:30]} Nb6 {[%emt 0:00:30]} 13. Qxc6+ {[%emt 0:00:30]} Bd7 {[%emt 0:00:30]} 14. Qc2 {[%emt 0:00:30]} Rc8 {[%emt 0:00:30]} 15. Qb1 {[%emt 0:00:30]} Nc4 {[%emt 0:00:30]} 16. Bd3 {[%emt 0:00:30]} h6 {[%emt 0:00:30]} 17. h3 {[%emt 0:00:30]} O-O {[%emt 0:00:30]} 18. Qb3 {[%emt 0:00:30]} f6 {[%emt 0:00:30]} 19. e6 {[%emt 0:00:30]} Bxe6 {[%emt 0:00:30]} 20. Qxb5 {[%emt 0:00:30]} Qd7 {[%emt 0:00:30]} 21. Qxd7 {[%emt 0:00:30]} Bxd7 {[%emt 0:00:30]} 22. Rb1 {[%emt 0:00:30]} Bd6 {[%emt 0:00:30]} 23. Nh4 {[%emt 0:00:30]} Rb8 {[%emt 0:00:30]} 24. Rxb8 {[%emt 0:00:30]} Rxb8 {[%emt 0:00:30]} 25. Nf5 {[%emt 0:00:30]} Bb4 {[%emt 0:00:30]} 26. Bf4 {[%emt 0:00:30]} Re8 {[%emt 0:00:30]} 27. g4 {[%emt 0:00:30]} Bc3 {[%emt 0:00:30]} 28. Rb1 {[%emt 0:00:30]} Nb2 {[%emt 0:00:30]} 29. Ba6 {[%emt 0:00:30]} Bxf5 {[%emt 0:00:30]} 30. gxf5 {[%emt 0:00:30]} Bxd4 {[%emt 0:00:30]} 31. Bb7 {[%emt 0:00:30]} Rd8 {[%emt 0:00:30]} 32. Kf1 {[%emt 0:00:30]} Nc4 {[%emt 0:00:30]} 33. Rb5 {[%emt 0:00:30]} Nb6 {[%emt 0:00:30]} 34. a4 {[%emt 0:00:30]} Nxa4 {[%emt 0:00:30]} 35. Bxd5+ {[%emt 0:00:30]} Kh7 {[%emt 0:00:30]} 36. Bf7 {[%emt 0:00:30]} Nc3 {[%emt 0:00:30]} 37. Rb7 {[%emt 0:00:30]} Nd5 {[%emt 0:00:30]} 38. Bd2 {[%emt 0:00:30]} Bc5 {[%emt 0:00:30]} 39. Rb5 {[%emt 0:00:30]} Ne7 {[%emt 0:00:30]} 40. Rxc5 {[%emt 0:00:30]} Rxd2 {[%emt 0:00:30]} 41. Be6 {[%emt 0:00:30]} Rd6 {[%emt 0:00:30]} 42. Rc7 {[%emt 0:00:30]} Nd5 {[%emt 0:00:30]} 43. Rc8 {[%emt 0:00:30]} Nf4 {[%emt 0:00:30]} 44. Bg8+ {[%emt 0:00:30]} Kh8 {[%emt 0:00:30]} 45. Bb3+ {[%emt 0:00:30]} Kh7 {[%emt 0:00:30]} 46. h4 {[%emt 0:00:30]} Rb6 {[%emt 0:00:30]} 47. Bg8+ {[%emt 0:00:30]} Kh8 {[%emt 0:00:30]} 48. Ba2+ {[%emt 0:00:30]} Kh7 {[%emt 0:00:30]} 49. h5 {[%emt 0:00:30]} g5 {[%emt 0:00:30]} 50. fxg6+ {[%emt 0:00:30]} 1-0

[Event "PanAm Intercolleagiate-ch 2019"]
[Site "Charlotte"]
[Date "2019.12.28"]
[Round "2.8"]
[White "Bok, Benjamin"]
[Black "Ramachandran, Karthik"]
[Result "0-1"]
[ECO "B51"]
[WhiteElo "2636"]
[BlackElo "2125"]
[Annotator "RC"]
[PlyCount "76"]
[EventDate "2019.12.27"]
[EventType "team-tourn"]
[EventCountry "USA"]
[SourceTitle "playchess.com"]
[Source "ChessBase"]
[SourceQuality "1"]
[TimeControl "5400+30"]

1. e4 {[%emt 1:30:30]} c5 {[%emt 1:30:30]} 2. Nf3 {[%emt 0:00:30]} d6 {[%emt 0:00:30]} 3. Bb5+ {[%emt 0:00:30]} Nd7 {[%emt 0:00:30]} 4. O-O {[%emt 0:00:30]} a6 {[%emt 0:00:30]} 5. Bd3 {[%emt 0:00:30]} Ngf6 {[%emt 0:00:30]} 6. Re1 {[%emt 0:00:30]} e6 {[%emt 0:00:30]} 7. c3 {[%emt 0:00:30]} Be7 {[%emt 0:00:30]} 8. Bc2 {[%emt 0:00:30]} b5 {[%emt 0:00:30]} 9. d4 {[%emt 0:00:30]} Bb7 {[%emt 0:00:30]} 10. Qe2 {[%emt 0:00:30]} Qc7 {[%emt 0:00:30]} 11. Bd3 {[%emt 0:00:30]} O-O {[%emt 0:00:30]} 12. Nbd2 {[%emt 0:00:30]} Rfe8 {[%emt 0:00:30]} 13. Nf1 {[%emt 0:00:30]} e5 {[%emt 0:00:30]} 14. d5 {[%emt 0:00:30]} c4 {[%emt 0:00:30]} 15. Bc2 {[%emt 0:00:30]} a5 {[%emt 0:00:30]} 16. Ng3 {[%emt 0:00:30]} g6 {[%emt 0:00:30]} 17. h3 {[%emt 0:00:30]} Reb8 {[%emt 0:00:30]} 18. Bh6 {[%emt 0:00:30]} b4 {[%emt 0:00:30]} 19. Qd2 {[%emt 0:00:30]} Nc5 {[%emt 0:00:30]} 20. Ng5 {[%emt 0:00:30]} Ba6 {[%emt 0:00:30]} 21. Rab1 {[%emt 0:00:30]} b3 {[%emt 0:00:30]} 22. axb3 {[%emt 0:00:30]} cxb3 {[%emt 0:00:30]} 23. Bd1 {[%emt 0:00:30]} a4 {[%emt 0:00:30]} 24. Be2 {[%emt 0:00:30]} a3 {[%emt 0:00:30]} 25. bxa3 {[%emt 0:00:30]} Bxe2 {[%emt 0:00:30]} 26. Rxe2 {[%emt 0:00:30]} Rxa3 {[%emt 0:00:30]} 27. Nf3 {[%emt 0:00:30]} Ra2 {[%emt 0:00:30]} 28. Qd1 {[%emt 0:00:30]} Rxe2 {[%emt 0:00:30]} 29. Qxe2 {[%emt 0:00:30]} Na4 {[%emt 0:00:30]} 30. Bd2 {[%emt 0:00:30]} Nxc3 {[%emt 0:00:30]} 31. Bxc3 {[%emt 0:00:30]} Qxc3 {[%emt 0:00:30]} 32. Qb2 {[%emt 0:00:30]} Qxb2 {[%emt 0:00:30]} 33. Rxb2 {[%emt 0:00:30]} Nd7 {[%emt 0:00:30]} 34. Nf1 {[%emt 0:00:30]} Nc5 {[%emt 0:00:30]} 35. N1d2 {[%emt 0:00:30]} f5 {[%emt 0:00:30]} 36. exf5 {[%emt 0:00:30]} gxf5 {[%emt 0:00:30]} 37. Rb1 {[%emt 0:00:30]} Rb4 {[%emt 0:00:30]} 38. Ra1 {[%emt 0:00:30]} e4 {[%emt 0:00:30]} 0-1

[Event "PanAm Intercolleagiate-ch 2019"]
[Site "Charlotte"]
[Date "2019.12.28"]
[Round "2.10"]
[White "Martinez, Isaac"]
[Black "Gledura, Benjamin"]
[Result "1-0"]
[ECO "A37"]
[WhiteElo "2079"]
[BlackElo "2626"]
[Annotator "RC"]
[PlyCount "111"]
[EventDate "2019.12.27"]
[EventType "team-tourn"]
[EventCountry "USA"]
[SourceTitle "playchess.com"]
[Source "ChessBase"]
[SourceQuality "1"]
[TimeControl "5400+30"]

1. Nf3 {[%emt 0:00:00]} c5 {[%emt 0:00:00]} 2. c4 {[%emt 0:00:00]} g6 {[%emt 0:00:00]} 3. g3 {[%emt 0:01:18]} Bg7 {[%emt 0:00:34]} 4. Bg2 {[%emt 0:00:16]} Nc6 {[%emt 0:00:35]} 5. Nc3 {[%emt 0:00:18]} d6 {[%emt 0:00:24]} 6. O-O {[%emt 0:01:30]} e5 {[%emt 0:00:22]} 7. a3 {[%emt 0:00:48]} a5 {[%emt 0:00:12]} 8. d3 {[%emt 0:03:30]} Nge7 {[%emt 0:00:31]} 9. Bd2 {[%emt 0:04:37]} O-O {[%emt 0:00:54]} 10. Rb1 {[%emt 0:02:45]} h6 {[%emt 0:03:53]} 11. Nb5 {[%emt 0:01:30]} Be6 {[%emt 0:06:02]} 12. Qc1 {[%emt 0:15:20]} Kh7 {[%emt 0:00:40]} 13. b4 {[%emt 0:00:10]} axb4 {[%emt 0:04:07]} 14. axb4 {[%emt 0:00:06]} b6 {[%emt 0:00:45]} 15. Bc3 {[%emt 0:02:45]} Qd7 {[%emt 0:04:16]} 16. Nd2 {[%emt 0:03:01]} Rac8 {[%emt 0:12:21]} 17. bxc5 {[%emt 0:02:43]} bxc5 {[%emt 0:00:07]} 18. Ne4 {[%emt 0:01:42]} Nf5 {[%emt 0:04:25]} 19. e3 {[%emt 0:00:43]} Rcd8 {[%emt 0:06:24]} 20. Ra1 {[%emt 0:01:03]} Qe7 {[%emt 0:03:27]} 21. Qa3 {[%emt 0:06:42]} Rd7 {[%emt 0:04:47]} 22. Rfb1 {[%emt 0:09:01]} Rc8 {[%emt 0:02:23]} 23. Qa6 {[%emt 0:01:42]} Rdd8 {[%emt 0:01:24]} 24. Qb6 {[%emt 0:05:03]} Bf8 {[%emt 0:08:39]} 25. Nxc5 {[%emt 0:06:16]} dxc5 {[%emt 0:01:19]} 26. Bxc6 {[%emt 0:00:06]} Rb8 {[%emt 0:00:47]} 27. Qa7 {[%emt 0:01:46]} Qxa7 {[%emt 0:02:33]} 28. Rxa7 {[%emt 0:00:27]} Rxd3 {[%emt 0:01:02]} 29. Bxe5 {[%emt 0:00:26]} Rb6 {[%emt 0:01:37]} 30. Be4 {[%emt 0:03:55]} Bxc4 {[%emt 0:01:33]} 31. Rxf7+ {[%emt 0:01:14]} Bxf7 {[%emt 0:06:03]} 32. Bxd3 {[%emt 0:00:07]} Bg7 {[%emt 0:01:26]} 33. Bxg7 {[%emt 0:00:22]} Kxg7 {[%emt 0:00:05]} 34. Kf1 {[%emt 0:01:20]} Nd6 {[%emt 0:03:11]} 35. Nxd6 {[%emt 0:00:16]} Rxd6 {[%emt 0:00:02]} 36. Ke2 {[%emt 0:02:00]} Kf6 {[%emt 0:02:50]} 37. Rc1 {[%emt 0:00:35]} Rc6 {[%emt 0:00:27]} 38. e4 {[%emt 0:00:18]} g5 {[%emt 0:08:15]} 39. f4 {[%emt 0:00:26]} gxf4 {[%emt 0:00:19]} 40. gxf4 {[%emt 0:00:02]} Bh5+ {[%emt 0:00:26]} 41. Ke3 {[%emt 0:00:09]} Bg4 {[%emt 0:00:06]} 42. e5+ {[%emt 0:01:00]} Ke6 {[%emt 0:00:31]} 43. Bc4+ {[%emt 0:00:54]} Kf5 {[%emt 0:01:19]} 44. Rb1 {[%emt 0:00:21]} Kg6 {[%emt 0:00:36]} 45. Rg1 {[%emt 0:02:12]} Kh5 {[%emt 0:00:39]} 46. Ke4 {[%emt 0:02:02]} Rb6 {[%emt 0:00:39]} 47. Kd5 {[%emt 0:00:35]} Rb2 {[%emt 0:00:35]} 48. e6 {[%emt 0:00:54]} Rd2+ {[%emt 0:02:31]} 49. Kxc5 {[%emt 0:00:22]} Bxe6 {[%emt 0:01:01]} 50. Bxe6 {[%emt 0:00:07]} Rxh2 {[%emt 0:00:02]} 51. f5 {[%emt 0:00:19]} Rf2 {[%emt 0:00:41]} 52. Rg6 {[%emt 0:01:45]} Rd2 {[%emt 0:00:51]} 53. Rg8 {[%emt 0:00:33]} Rf2 {[%emt 0:00:16]} 54. Kd6 {[%emt 0:00:29]} Kh4 {[%emt 0:00:05]} 55. Ke7 {[%emt 0:00:18]} h5 {[%emt 0:00:03]} 56. Rf8 {[%emt 0:00:11]} 1-0

[Event "PanAm Intercolleagiate-ch 2019"]
[Site "Charlotte"]
[Date "2019.12.28"]
[Round "2.11"]
[White "Wang, Xiexin"]
[Black "Cordova, Emilio"]
[Result "0-1"]
[ECO "A25"]
[WhiteElo "2086"]
[BlackElo "2585"]
[Annotator "ChessBase"]
[PlyCount "84"]
[EventDate "2019.12.27"]
[EventType "team-tourn"]
[EventCountry "USA"]
[SourceTitle "playchess.com"]
[Source "ChessBase"]
[SourceQuality "1"]
[TimeControl "5400+30"]

1. c4 {[%emt 1:30:30]} e5 {[%emt 1:30:30]} 2. g3 {[%emt 0:00:30]} Nc6 {[%emt 0:00:30]} 3. Bg2 {[%emt 0:00:30]} Bc5 {[%emt 0:00:30]} 4. Nc3 {[%emt 0:00:30]} a6 {[%emt 0:00:30]} 5. e3 {[%emt 0:00:30]} Ba7 {[%emt 0:00:30]} 6. Nge2 {[%emt 0:00:30]} d6 {[%emt 0:00:30]} 7. Rb1 {[%emt 0:00:30]} Bf5 {[%emt 0:00:30]} 8. d3 {[%emt 0:00:30]} Qd7 {[%emt 0:00:30]} 9. Nd5 {[%emt 0:00:30]} Rc8 {[%emt 0:00:30]} 10. b4 {[%emt 0:00:30]} b5 {[%emt 0:00:30]} 11. Qc2 {[%emt 0:00:30]} Nge7 {[%emt 0:00:30]} 12. Nxe7 {[%emt 0:00:30]} Nxe7 {[%emt 0:00:30]} 13. Bb7 {[%emt 0:00:30]} Rb8 {[%emt 0:00:30]} 14. Bf3 {[%emt 0:00:30]} O-O {[%emt 0:00:30]} 15. O-O {[%emt 0:00:30]} bxc4 {[%emt 0:00:30]} 16. Qxc4 {[%emt 0:00:30]} d5 {[%emt 0:00:30]} 17. Qc2 {[%emt 0:00:30]} Rb6 {[%emt 0:00:30]} 18. Bb2 {[%emt 0:00:30]} Bh3 {[%emt 0:00:30]} 19. Rfe1 {[%emt 0:00:30]} Rf6 {[%emt 0:00:30]} 20. Bh1 {[%emt 0:00:30]} Ng6 {[%emt 0:00:30]} 21. d4 {[%emt 0:00:30]} e4 {[%emt 0:00:30]} 22. Nf4 {[%emt 0:00:30]} Nxf4 {[%emt 0:00:30]} 23. exf4 {[%emt 0:00:30]} Rxf4 {[%emt 0:00:30]} 24. Rbc1 {[%emt 0:00:30]} Rc8 {[%emt 0:00:30]} 25. f3 {[%emt 0:00:30]} Rf6 {[%emt 0:00:30]} 26. fxe4 {[%emt 0:00:30]} dxe4 {[%emt 0:00:30]} 27. Qxe4 {[%emt 0:00:30]} Re6 {[%emt 0:00:30]} 28. Qf4 {[%emt 0:00:30]} h6 {[%emt 0:00:30]} 29. Bg2 {[%emt 0:00:30]} Bxg2 {[%emt 0:00:30]} 30. Kxg2 {[%emt 0:00:30]} Qd5+ {[%emt 0:00:30]} 31. Kg1 {[%emt 0:00:30]} Rxe1+ {[%emt 0:00:30]} 32. Rxe1 {[%emt 0:00:30]} Qxa2 {[%emt 0:00:30]} 33. Re2 {[%emt 0:00:30]} Bb6 {[%emt 0:00:30]} 34. Kg2 {[%emt 0:00:30]} Rd8 {[%emt 0:00:30]} 35. Qe5 {[%emt 0:00:30]} Qc4 {[%emt 0:00:30]} 36. Re4 {[%emt 0:00:30]} Qxb4 {[%emt 0:00:30]} 37. d5 {[%emt 0:00:30]} Qd2+ {[%emt 0:00:30]} 38. Kh3 {[%emt 0:00:30]} Qg5 {[%emt 0:00:30]} 39. Qc3 {[%emt 0:00:30]} Rxd5 {[%emt 0:00:30]} 40. Rg4 {[%emt 0:00:30]} Qh5+ {[%emt 0:00:30]} 41. Rh4 {[%emt 0:00:30]} Qf5+ {[%emt 0:00:30]} 42. Rg4 {[%emt 0:00:30]} Qf1+ {[%emt 0:00:30]} 0-1

[Event "PanAm Intercolleagiate-ch 2019"]
[Site "Charlotte"]
[Date "2019.12.28"]
[Round "2.14"]
[White "Vorontsov, Pavlo"]
[Black "Isakov, Michael"]
[Result "*"]
[ECO "D51"]
[WhiteElo "2539"]
[BlackElo "2162"]
[Annotator "ChessBase"]
[PlyCount "46"]
[EventDate "2019.12.27"]
[EventType "team-tourn"]
[EventCountry "USA"]
[SourceTitle "playchess.com"]
[Source "ChessBase"]
[SourceQuality "1"]
[TimeControl "5400+30"]

1. d4 {[%emt 0:00:00]} e6 {[%emt 0:00:15]} 2. c4 {[%emt 0:00:00]} Nf6 {[%emt 0:00:20]} 3. Nf3 {[%emt 0:00:13]} d5 {[%emt 0:01:20]} 4. Nc3 {[%emt 0:00:21]} Nbd7 {[%emt 0:00:51]} 5. Bg5 {[%emt 0:00:35]} c6 {[%emt 0:00:47]} 6. e3 {[%emt 0:02:51]} h6 {[%emt 0:00:47]} 7. Bh4 {[%emt 0:03:13]} g5 {[%emt 0:00:12]} 8. Bg3 {[%emt 0:00:05]} Nh5 {[%emt 0:00:06]} 9. Be5 {[%emt 0:10:22]} Ng7 {[%emt 0:01:19]} 10. Bd3 {[%emt 0:04:21]} g4 {[%emt 1:29:03]} 11. Bxg7 {[%emt 0:01:30]} Bxg7 {[%emt 1:21:04]} 12. Nd2 {[%emt 0:00:43]} f5 {[%emt 0:00:28]} 13. Qe2 {[%emt 0:12:04]} Nf6 {[%emt 0:03:03]} 14. f3 {[%emt 1:00:42]} Bd7 {[%emt 0:06:47]} 15. O-O-O {[%emt 0:52:47]} Qe7 {[%emt 0:19:50]} 16. Nb3 {[%emt 0:43:59]} O-O-O {[%emt 0:30:16]} 17. Kb1 {[%emt 0:00:00]} Kb8 {[%emt 0:00:00]} 18. f4 {[%emt 0:00:00]} Bc8 {[%emt 0:00:00]} 19. Rc1 {[%emt 0:00:00]} Ne4 {[%emt 0:00:00]} 20. c5 {[%emt 0:00:00]} Qc7 {[%emt 0:00:00]} 21. Rc2 {[%emt 0:00:00]} h5 {[%emt 0:00:00]} 22. Rhc1 {[%emt 0:00:00]} Bd7 {[%emt 0:00:00]} 23. Qe1 {[%emt 0:00:00]} g3 {[%emt 0:00:00]} *

[Event "PanAm Intercolleagiate-ch 2019"]
[Site "Charlotte"]
[Date "2019.12.28"]
[Round "2.16"]
[White "Sorokin, Aleksey"]
[Black "Pinisetti, Prateek"]
[Result "*"]
[ECO "B14"]
[WhiteElo "2520"]
[BlackElo "2123"]
[Annotator "ChessBase"]
[PlyCount "55"]
[EventDate "2019.12.27"]
[EventType "team-tourn"]
[EventCountry "USA"]
[SourceTitle "playchess.com"]
[Source "ChessBase"]
[SourceQuality "1"]
[TimeControl "5400+30"]

1. e4 {[%emt 0:00:00]} c6 {[%emt 0:00:00]} 2. d4 {[%emt 0:00:00]} d5 {[%emt 0:00:00]} 3. exd5 {[%emt 0:00:00]} cxd5 {[%emt 0:00:12]} 4. c4 {[%emt 0:00:00]} Nf6 {[%emt 0:01:02]} 5. Nc3 {[%emt 0:00:11]} g6 {[%emt 0:00:41]} 6. Bg5 {[%emt 0:03:24]} Ne4 {[%emt 0:04:09]} 7. Nxe4 {[%emt 1:29:55]} dxe4 {[%emt 0:00:09]} 8. Qd2 {[%emt 0:01:28]} Bg7 {[%emt 0:06:00]} 9. Ne2 {[%emt 0:22:30]} Bg4 {[%emt 1:22:17]} 10. d5 {[%emt 0:09:13]} Na6 {[%emt 0:06:07]} 11. Nc3 {[%emt 0:48:18]} Nc5 {[%emt 0:13:16]} 12. h3 {[%emt 0:04:21]} Bf5 {[%emt 0:59:33]} 13. Be2 {[%emt 0:03:42]} Rc8 {[%emt 0:06:33]} 14. O-O {[%emt 0:02:38]} O-O {[%emt 0:52:21]} 15. Rfd1 {[%emt 0:03:29]} Re8 {[%emt 0:02:05]} 16. Rac1 {[%emt 0:08:02]} Qa5 {[%emt 0:46:53]} 17. b3 {[%emt 0:00:53]} b6 {[%emt 0:07:00]} 18. Be3 {[%emt 0:04:37]} Red8 {[%emt 0:03:43]} 19. g4 {[%emt 0:02:03]} Bd7 {[%emt 0:33:49]} 20. Bxc5 {[%emt 0:01:27]} Bxc3 {[%emt 0:32:48]} 21. Qxc3 {[%emt 0:01:42]} Qxc3 {[%emt 0:32:02]} 22. Rxc3 {[%emt 0:00:02]} bxc5 {[%emt 0:00:13]} 23. Re3 {[%emt 0:03:04]} f5 {[%emt 0:01:00]} 24. gxf5 {[%emt 0:04:00]} Bxf5 {[%emt 0:01:52]} 25. Bf1 {[%emt 0:01:18]} e6 {[%emt 0:03:35]} 26. Bg2 {[%emt 0:02:54]} exd5 {[%emt 0:00:08]} 27. cxd5 {[%emt 0:01:28]} Re8 {[%emt 0:06:33]} 28. Rde1 {[%emt 0:01:21]} *

[Event "PanAm Intercolleagiate-ch 2019"]
[Site "Charlotte"]
[Date "2019.12.29"]
[Round "3.1"]
[White "Bruzon Batista, Lazaro"]
[Black "Popilski, Gil"]
[Result "1-0"]
[ECO "D34"]
[WhiteElo "2640"]
[BlackElo "2465"]
[Annotator "RC"]
[PlyCount "147"]
[EventDate "2019.12.27"]
[EventType "team-tourn"]
[EventCountry "USA"]
[SourceTitle "playchess.com"]
[Source "ChessBase"]
[SourceQuality "1"]
[TimeControl "5400+30"]

1. Nf3 {[%emt 1:30:30]} c5 {[%emt 1:30:30]} 2. c4 {[%emt 0:00:30]} Nf6 {[%emt 0:00:30]} 3. Nc3 {[%emt 0:00:30]} e6 {[%emt 0:00:30]} 4. g3 {[%emt 0:00:30]} Nc6 {[%emt 0:00:30]} 5. Bg2 {[%emt 0:00:30]} d5 {[%emt 0:00:30]} 6. cxd5 {[%emt 0:00:30]} exd5 {[%emt 0:00:30]} 7. d4 {[%emt 0:00:30]} Be7 {[%emt 0:00:30]} 8. O-O {[%emt 0:00:30]} O-O {[%emt 0:00:30]} 9. Bf4 {[%emt 0:00:30]} c4 {[%emt 0:00:30]} 10. Ne5 {[%emt 0:00:30]} Bf5 {[%emt 0:00:30]} 11. Rc1 {[%emt 0:00:30]} Rc8 {[%emt 0:00:30]} 12. g4 {[%emt 0:00:30]} Nxg4 {[%emt 0:00:30]} 13. Nxg4 {[%emt 0:00:30]} Bxg4 {[%emt 0:00:30]} 14. Nxd5 {[%emt 0:00:30]} Bg5 {[%emt 0:00:30]} 15. Rxc4 {[%emt 0:00:30]} Re8 {[%emt 0:00:30]} 16. Ne3 {[%emt 0:00:30]} Bxf4 {[%emt 0:00:30]} 17. Nxg4 {[%emt 0:00:30]} h5 {[%emt 0:00:30]} 18. d5 {[%emt 0:00:30]} Bb8 {[%emt 0:00:30]} 19. dxc6 {[%emt 0:00:30]} hxg4 {[%emt 0:00:30]} 20. Rxg4 {[%emt 0:00:30]} bxc6 {[%emt 0:00:30]} 21. e3 {[%emt 0:00:30]} Qf6 {[%emt 0:00:30]} 22. Qe2 {[%emt 0:00:30]} Qh6 {[%emt 0:00:30]} 23. h3 {[%emt 0:00:30]} Rcd8 {[%emt 0:00:30]} 24. Rd1 {[%emt 0:00:30]} Qf6 {[%emt 0:00:30]} 25. Rxd8 {[%emt 0:00:30]} Rxd8 {[%emt 0:00:30]} 26. Rc4 {[%emt 0:00:30]} Qe6 {[%emt 0:00:30]} 27. b3 {[%emt 0:00:30]} Qe5 {[%emt 0:00:30]} 28. Rc1 {[%emt 0:00:30]} Rd6 {[%emt 0:00:30]} 29. Kf1 {[%emt 0:00:30]} Rg6 {[%emt 0:00:30]} 30. Rxc6 {[%emt 0:00:30]} Rxc6 {[%emt 0:00:30]} 31. Bxc6 {[%emt 0:00:30]} Qa1+ {[%emt 0:00:30]} 32. Kg2 {[%emt 0:00:30]} Qf6 {[%emt 0:00:30]} 33. Be4 {[%emt 0:00:30]} Qe5 {[%emt 0:00:30]} 34. Qf3 {[%emt 0:00:30]} Qg5+ {[%emt 0:00:30]} 35. Kf1 {[%emt 0:00:30]} Qb5+ {[%emt 0:00:30]} 36. Kg2 {[%emt 0:00:30]} Qg5+ {[%emt 0:00:30]} 37. Qg4 {[%emt 0:00:30]} Qxg4+ {[%emt 0:00:30]} 38. hxg4 {[%emt 0:00:30]} Bd6 {[%emt 0:00:30]} 39. g5 {[%emt 0:00:30]} g6 {[%emt 0:00:30]} 40. f4 {[%emt 0:00:30]} Kg7 {[%emt 0:00:30]} 41. Kf3 {[%emt 0:00:30]} f6 {[%emt 0:00:30]} 42. gxf6+ {[%emt 0:00:30]} Kxf6 {[%emt 0:00:30]} 43. Bd5 {[%emt 0:00:30]} g5 {[%emt 0:00:30]} 44. Kg4 {[%emt 0:00:30]} gxf4 {[%emt 0:00:30]} 45. exf4 {[%emt 0:00:30]} Bb4 {[%emt 0:00:30]} 46. Bc4 {[%emt 0:00:30]} a5 {[%emt 0:00:30]} 47. Kf3 {[%emt 0:00:30]} Kf5 {[%emt 0:00:30]} 48. Ba6 {[%emt 0:00:30]} Ke6 {[%emt 0:00:30]} 49. Ke4 {[%emt 0:00:30]} Kd6 {[%emt 0:00:30]} 50. Kd4 {[%emt 0:00:30]} Ba3 {[%emt 0:00:30]} 51. Bd3 {[%emt 0:00:30]} Bc1 {[%emt 0:00:30]} 52. f5 {[%emt 0:00:30]} Ba3 {[%emt 0:00:30]} 53. Kc4 {[%emt 0:00:30]} Ke5 {[%emt 0:00:30]} 54. Kb5 {[%emt 0:00:30]} Bb4 {[%emt 0:00:30]} 55. a3 {[%emt 0:00:30]} Bxa3 {[%emt 0:00:30]} 56. Kxa5 {[%emt 0:00:30]} Kd4 {[%emt 0:00:30]} 57. Bc4 {[%emt 0:00:30]} Be7 {[%emt 0:00:30]} 58. Be6 {[%emt 0:00:30]} Kc3 {[%emt 0:00:30]} 59. Ka4 {[%emt 0:00:30]} Bf8 {[%emt 0:00:30]} 60. f6 {[%emt 0:00:30]} Bd6 {[%emt 0:00:30]} 61. f7 {[%emt 0:00:30]} Bf8 {[%emt 0:00:30]} 62. Kb5 {[%emt 0:00:30]} Kd4 {[%emt 0:00:30]} 63. Kc6 {[%emt 0:00:30]} Ke5 {[%emt 0:00:30]} 64. Bc4 {[%emt 0:00:30]} Ba3 {[%emt 0:00:30]} 65. Kd7 {[%emt 0:00:30]} Kf6 {[%emt 0:00:30]} 66. Ke8 {[%emt 0:00:30]} Kg7 {[%emt 0:00:30]} 67. Be6 {[%emt 0:00:30]} Bf8 {[%emt 0:00:30]} 68. Bd5 {[%emt 0:00:30]} Ba3 {[%emt 0:00:30]} 69. Kd7 {[%emt 0:00:30]} Kf6 {[%emt 0:00:30]} 70. Kc6 {[%emt 0:00:30]} Ke5 {[%emt 0:00:30]} 71. Kb5 {[%emt 0:00:30]} Bf8 {[%emt 0:00:30]} 72. Kc4 {[%emt 0:00:30]} Kd6 {[%emt 0:00:30]} 73. b4 {[%emt 0:00:30]} Kc7 {[%emt 0:00:30]} 74. b5 {[%emt 0:00:30]} 1-0